{"text_format":"1","workbook":"xlsx","n_sheets":1,"sheets":["CATÁLOGO DOPI (2)"],"not_rendered":{"charts":0,"images":2,"macros":1,"external_links":2,"defined_names":135,"comments":0,"pivot_tables":0},"unopened":[],"bounds":{"document_bytes":16777216,"sheet_cells":100000,"rows_first":2000,"rows_last":500,"rows_between":2000,"halvings":0,"cell_chars":16384,"cell_head_chars":4096},"cells_cut":0,"cells_raw":0,"read":"whole","date_system":"1900"}

{"sheet":"CATÁLOGO DOPI (2)","index":0,"n_rows":176,"n_cols":8,"rows_kept":176,"cut":false,"hidden":false,"merged":[[11,7,12,7],[14,1,14,7],[17,0,17,7],[173,1,173,2],[174,1,175,4],[1,3,1,6],[2,3,5,6],[7,2,9,2],[10,3,10,6],[11,2,12,2],[11,3,12,6]]}
[]
[null,null,"MUNICIPIO DE ZAPOPAN, JALISCO","LICITACIÓN PÚBLICA No."]
[null,null,"DIRECCIÓN DE CONSERVACION DE INMUEBLES"]
[null,null,"UNIDAD DE PRESUPUESTOS Y CONTRATACION DE OBRA PUBLICA"]
[]
[]
[null,null,"DESCRIPCIÓN GENERAL DE LOS TRABAJOS:",null,null,"FECHA DE INICIO:"]
[null,null,"Mantenimiento y adecuacion de espacios con trabajos de sustitucion de cubiertas, pisos de concreto, instalaciones electricas, hidraulicas, sanitarias, asi obras complementarias, en el mercado de las Fuentes, con domicilio c. San Antonio #110, Las Fuentes, en Zapopan Jalisco.",null,null,"FECHA DE TERMINACIÓN:"]
[null,null,null,null,null,"PLAZO DE EJECUCIÓN:"]
[null,null,null,null,null,"FECHA DE PRESENTACIÓN:"]
[null,null,"RAZÓN SOCIAL DEL LICITANTE:","NOMBRE, CARGO Y FIRMA DEL LICITANTE",null,null,null,"DOCUMENTO"]
[null,null,null,null,null,null,null,"PE1"]
[]
[]
[null,"CATÁLOGO DE CONCEPTOS"]
[]
[null,"CLAVE","DESCRIPCIÓN ","UNIDAD","CANTIDAD","PRECIO UNITARIO ($)","PRECIO UNITARIO ($) CON LETRA","IMPORTE ($) M. N."]
[]
[null,"A","MERCADO LAS FUENTES",null,null,null,null,{"$f":"H20+H38+H53+H63+H75+H88+H111+H130+H136","v":0}]
[null,"A.1","PRELIMINARES",null,null,null,null,{"$f":"SUM(H21:H37)","v":0}]
[null,"DOPI-001","DESMONTAJE DE LAMINA GALVANIZADA DISTINTOS CALIBRES DE ESPESOR SIN RECUPERACIÓN, A UNA ALTURA DE HASTA 12 M. INCLUYE: ACARREO, DESCENSO Y RETIRO FUERA DE LA OBRA, EQUIPO, ANDAMIOS, MATERIALES, HERRAMIENTA Y MANO DE OBRA.","M2",198.45,null,{"$f":"Enletras(F21)","v":" Pesos   0 0/100 M.N"},{"$f":"ROUND((F21*E21),2)","v":0}]
[null,"DOPI-002","DESMONTAJE DE TEJA DE BARRO SOBRE ESTRUCTURA METALICA  SIN RECUPERACIÓN, A UNA ALTURA DE HASTA 12 M. INCLUYE: ACARREO, DESCENSO Y RETIRO FUERA DE LA OBRA, AL LUGAR AUTORIZADO, EQUIPO, ANDAMIOS, MATERIALES, HERRAMIENTA Y MANO DE OBRA.","M2",21,null," Pesos   0 0/100 M.N",0]
[null,"DOPI-003","DESMONTAJE DE ESTRUCTURA METALICA EN TECHUMBRE, COLUMNAS  Y ELEMENTOS TUBULARES DE ACERO (POLIN MONTIN, PTR, ENTRE OTROS) CON RECUPERACIÓN PARA SU POSTERIOR REHUBICACIÓN, INCLUYE: ANDAMIOS, MANO DE OBRA, CORTES, EQUIPO, HERRAMIENTA Y ACARREO DE MATERIAL PRODUCTO DE DESMONTAJES, HASTA EL LUGAR ASIGNADO.","KG",2100,null," Pesos   0 0/100 M.N",0]
[null,"DOPI-004","DESMONTAJE DE BAJANTE PLUVIAL ADOSADO EN MURO CON UNA LONGITUD DE 12 MT SIN RECUPERACIÓN, A UNA ALTURA DE HASTA 12 MT, INCLUYE: ACARREO Y RETIRO FUERA DE LA OBRA, EQUIPO, HERRAMIENTA Y MANO DE OBRA.","PZA",3,null," Pesos   0 0/100 M.N",0]
[null,"DOPI-005","DESMONTAJE DE SALIDA ELECTRICA EXISTENTE (CONTACTO, APAGADOR, LUMINARIA, CENTROS DE CARGA Y/O BASES DE MEDICION) SIN RECUPERACIÓN, A UNA ALTURA DE HASTA 12 M. INCLUYE: ACARREO, DESCENSO Y RETIRO FUERA DE LA OBRA, AL LUGAR AUTORIZADO, EQUIPO, ANDAMIOS, MATERIALES, HERRAMIENTA Y MANO DE OBRA.","SAL ",21,null," Pesos   0 0/100 M.N",0]
[null,"DOPI-006","DESMONTAJE CON RECUPERACION DE W.C., LAVABO Y/O MINGITORIO. INCLUYE: TAPONAMIENTO CON TAPON CAPA DE 1/2\" Y DESCONEXION DE LA RED DE AGUA Y SANITARIA Y ACCESORIOS.","PZA",4,null," Pesos   0 0/100 M.N",0]
[null,"DOPI-007","DESMONTAJE DE ACCESORIOS SANITARIOS (DOSIFICADOR DE JABON, DOSIFICADOR DE PAPEL, DOSIFICADOR DE JABON, SECADORES, ETC.) SIN RECUPERACIÓN, INCLUYE:  HERRAMIENTA, MANO DE OBRA, EQUIPO, ACARREO INTERNO Y APILE PARA RETIRO POSTERIOR.","PZA",8,null," Pesos   0 0/100 M.N",0]
[null,"DOPI-008","DESMONTAJE DE MAMPARAS SANITARIAS  CON RECUPERACIÓN,  INCLUYE: ACARREOS DENTRO DE LA OBRA Y POSTERIORMENTE DONDE INDIQUE SUPERVISIÓN FUERA DE LA OBRA, MANO DE OBRA, EQUIPO Y HERRAMIENTA.","M2",10.5,null," Pesos   0 0/100 M.N",0]
[null,"DOPI-009","DESMONTAJE DE  LUMINARIA EXISTENTE SIN RECUPERACIÓN, A UNA ALTURA DE HASTA 12 M. INCLUYE: ACARREO, DESCENSO Y RETIRO FUERA DE LA OBRA, AL LUGAR AUTORIZADO, EQUIPO, ANDAMIOS, MATERIALES, HERRAMIENTA Y MANO DE OBRA.","SAL ",23,null," Pesos   0 0/100 M.N",0]
[null,"DOPI-010","DEMOLICIÓN DE CONCRETO SIMPLE EN BANQUETAS, POR MEDIOS MECÁNICOS, INCLUYE: ACARREO DEL MATERIAL A BANCO DE OBRA PARA SU POSTERIOR RETIRO Y LIMPIEZA DEL ÁREA DE LOS TRABAJOS, MANO DE OBRA, EQUIPO Y HERRAMIENTA.","M3",304.5,null," Pesos   0 0/100 M.N",0]
[null,"DOPI-011","DEMOLICIÓN POR CUALQUIER MEDIO DE VITROPISO, INCLUYE: DEMOLICION DEL MORTERO, HERRAMIENTA, MANO DE OBRA, ACARREO INTERNO Y APILE PARA SU POSTERIOR  RETIRO.","M2",598.5,null," Pesos   0 0/100 M.N",0]
[null,"DOPI-012","DEMOLICIÓN POR CUALQUIER MEDIO DE AZULEJO EN MURO, INCLUYE: DEMOLICION DEL MORTERO, HERRAMIENTA, MANO DE OBRA, ACARREO INTERNO Y APILE PARA SU POSTERIOR  RETIRO.","M2",157.5,null," Pesos   0 0/100 M.N",0]
[null,"DOPI-013","DEMOLICION MANUAL DE ELEMENTOS DE CONCRETO ARMADO EN ESTRUCTURA, INCLUYE: ANDAMIOS, MANO DE OBRA, EQUIPO, HERRAMIENTA Y  ACOPIO DEL MATERIAL PARA SU RETIRO POSTERIOR.","M3",33.71,null," Pesos   0 0/100 M.N",0]
[null,"DOPI-014","DESMONTAJE DE HERRERIA EN GENERAL EMPOTRADA O ANCLADA CON RECUPERACION, INCLUYE: DEMOLICION O RASPADO DE MORTERO O CONCRETO, ACOPIO DEL MATERIAL PARA SU RETIRO POSTERIOR, MANO DE OBRA Y ANDAMIOS.","M2",21,null," Pesos   0 0/100 M.N",0]
[null,"DOPI-015","CARGA Y ACARREO EN CARRETILLA A 20.00 MT. DE DISTANCIA DE MATERIAL PRODUCTO DE LA EXCAVACION Y/O DEMOLICION.  INCLUYE: HERRAMIENTA MENOR Y MANO DE OBRA. VOLUMEN MEDIDO EN SECCIONES.","M3",57.75,null," Pesos   0 0/100 M.N",0]
[null,"DOPI-016","CARGA MECÁNICA Y ACARREO EN CAMIÓN 1 ER. KILOMETRO, DE MATERIAL PRODUCTO DE EXCAVACIÓN, DEMOLICIÓN Y/O ESCOMBROS, INCLUYE: REGALÍAS AL BANCO DE TIRO, MANO DE OBRA, EQUIPO Y HERRAMIENTA.","M3",57.75,null," Pesos   0 0/100 M.N",0]
[null,"DOPI-017","ACARREO EN CAMIÓN KILÓMETROS SUBSECUENTES DE MATERIAL PRODUCTO DE EXCAVACIÓN, DEMOLICIÓN Y/O ESCOMBROS A TIRADERO AUTORIZADO POR SUPERVISIÓN, INCLUYE: MANO DE OBRA, EQUIPO Y HERRAMIENTA.","M3/KM",1097.25,null," Pesos   0 0/100 M.N",0]
[null,"A.2","PISOS Y BAÑOS",0,0,null,null,{"$f":"SUM(H39:H52)","v":0}]
[null,"DOPI-018","SUMINISTRO Y ELABORACIÓN DE PISO DE CONCRETO F’C=200 KG/CM2 ESTAMPADO CON COLOR INTEGRADO A 4% T.M.A. ¾, BOMBEABLE, REFORZADO CON MALLA ELECTRSOLDADA 6X6-10/10 DE 8 CM DE ESPESOR, SELLADO CON BARNIZ MATE O BRILLOSO INCLUYE: CORTES, JUNTA ELASTOMERICA, MATERIAL, MANO DE OBRA, HERRAMIENTA Y CIMBRA.","M2",210,null," Pesos   0 0/100 M.N",0]
[null,"DOPI-019","SUMINISTRO E INSTALACION DE PISO PORCELÁNICO TURIN DALTILE 60 X 60 CM ACABADO RECTIFICADO PULIDO BRILLANTE, INCLUYE: MATERIALES, MANO DE OBRA, ADHESIVOS, PREPARACION DEL AREA,  JUNTEO Y TODO LO NECESARIO PARA SU CORRECTA EJECUCION.","M2",480.9,null," Pesos   0 0/100 M.N",0]
[null,"DOPI-020","SUMINISTRO E INSTALACION DE ZOCLO PORCELÁNICO TURIN DALTILE 10 X 60 CM ACABADO RECTIFICADO PULIDO BRILLANTE, INCLUYE: MATERIALES, MANO DE OBRA, ADHESIVOS, PREPARACION DEL AREA,  JUNTEO Y TODO LO NECESARIO PARA SU CORRECTA EJECUCION.","M",157.5,null," Pesos   0 0/100 M.N",0]
[null,"DOPI-021","SUMINISTRO Y COLOCACION DE AZULEJO YORK BLANCO ACABADO MATE ANTIDERRAPANTE MEDIDAS APROX DE 10 CM X 20 CM, INCLUYE: MATERIALES, HERRAMIENTA Y MANO DE OBRA.","M2",126,null," Pesos   0 0/100 M.N",0]
[null,"DOPI-022","SUMINISTRO Y COLOCACIÓN DE DESPACHADOR DE JABON LIQUIDO MODELO: 92537. INCLUYE: MATERIAL, ACCESORIOS, MANO DE OBRA, EQUIPO Y HERRAMIENTA.","PZA",2,null," Pesos   0 0/100 M.N",0]
[null,"DOPI-023","SUMINISTRO E INSTALACION DE LLAVE MEZCLADORA PARA LAVABO MONOMANDO DE 14.5 X 13 X 4.3 CM LATÓN, MARCA HELVEX INCLUYE: MANO DE OBRA, ACCESORIOS, CESPOL DE LATON MODELO 4209,  MANGUERAS COFLEX, LLAVE ANGULAR FIG. 401, MATERIAL Y HERRAMIENTA.","PZA",4,null," Pesos   0 0/100 M.N",0]
[null,"DOPI-024","SUMINISTRO E INSTALACIÓN DE W.C. RODANO HELVEX, ALARGADO CON TRAMPA EXPUESTA Y DESCARGA DE 4.8 LITROS, COLOR BLANCO, INCLUYE: ASIENTO PARA BAÑO HELVEX AT-2, JUNTA DE CERA, LLAVE DE CONTROL, MANGUERA DE ALIMENTACIÓN, PIJAS, COLOCACIÓN, MATERIALES, HERRAMIENTA Y MANO DE OBRA.","PZA",5,null," Pesos   0 0/100 M.N",0]
[null,"DOPI-025","SUMINISTRO E INSTALACION DE DOSIFICADOR DE JABON ESPUMA/FOAM CON DEPOSITO RELLENABLE DE 800ML CODIGO: AC45000. INCLUYE: MATERIAL, HERRAMIENTA, EQUIPO Y MANO DE OBRA,","PZA",2,null," Pesos   0 0/100 M.N",0]
[null,"DOPI-026","SUMINISTRO E INSTALACION DE DISPENSADOR DE PAPEL HIGIENICO EN ROLLO CONTINUO- KIMBERLY CLARCK, INCLUYE: ANCLAJE, MANO DE OBRA, ACCESORIOS, EQUIPO Y HERRAMIENTA.","PZA",4,null," Pesos   0 0/100 M.N",0]
[null,"DOPI-027","SUMINISTRO Y COLOCACIÓN DE ESPEJO FLOTADO RECTANGULAR BISELADO DE 6 MM INCLINACIÓN DE 10°, INCLUYE: MATERIALES MENORES Y DE CONSUMO,  ELEMENTOS DE FIJACION, MARCO DE ALUMINIO DE 2\", VINILO, PIJAS, HERRAMIENTAS, LIMPIEZA Y MANO DE OBRA ESPECIALIZADA.","M2",6.93,null," Pesos   0 0/100 M.N",0]
[null,"DOPI-028","BARRA PARA EMPOTRAR LAVABOS DE 0.60 MTS. DE ANCHO Y 0.10 MTS. DE ESPESOR CON CONCRETO DE F'c=150 KG/CM2 ARMADA CON VARILLA DE 3/8\" A CADA 15 CM. AMBOS SENTIDOS ACABADO CON AZULEJO MCA. INTERCERAMIC DE 20 X 20 CM, MODELO ASTRATTO BLANCO ANTIBACTERIAL PEGADO CON CEMENTO CREST O SIMILAR. INCLUYE: SUMINISTRO Y ELABORACION, TRAZO, NIVELACION, CIMBRA, DESCIMBRA, MATERIAL Y MANO DE OBRA.","M",6.3,null," Pesos   0 0/100 M.N",0]
[null,"DOPI-029","SUMINISTRO E INSTALACIÓN DE LAVABO OVALIN DE SUBMONTAR, DE PORCELANA, COLOR BLANCO MODELO BARBADOS DE 60 X 40 X 10 CM DE ALTURA, INCLUYE: MANO DE OBRA, COLOCACIÓN,CESPOL DE LATON ACABADO CROMADO, EQUIPO, HERRAMIENTA Y ACARREOS. EN CUALQUIER NIVEL.","PZA",4,null," Pesos   0 0/100 M.N",0]
[null,"DOPI-030","SUMINISTRO Y COLOCACIÓN DE MAMPARAS MARCA MODUMEX LÍNEA LEEDER M1 MODELO ESTÁNDAR ACABADO SÓLIDO FENÓLICO 12.7 MM COLOR PLATINUM DROPS O SIMILAR, INCLUYE: MATERIALES, MANO DE OBRA, EQUIPO, HERRAJES DE FIJACIÓN Y HERRAMIENTA.","M2",12.6,null," Pesos   0 0/100 M.N",0]
[null,"DOPI-031","SUMINISTRO Y COLOCACIÓN DE MINGITORIO ECOLÓGICO COLOR BLANCO MARCA MAKECH MODELO MTA – 3004 O SIMILAR,  INCLUYE: MATERIALES, MANO DE OBRA, EQUIPO, HERRAJES DE FIJACIÓN Y HERRAMIENTA.","PZA",2,null," Pesos   0 0/100 M.N",0]
[null,"A.3","CIMENTACIONES ANCLAJES ESTRUCTURAL",0,0,null,null,{"$f":"SUM(H54:H62)","v":0}]
[null,"DOPI-032","CORTE CON DISCO DE DIAMANTE HASTA 1/3 DE ESPESOR DE LA LOSA Y HASTA 3 MM DE ANCHO, INCLUYE: EQUIPO, PREPARACIONES Y MANO DE OBRA.","M",50.4,null," Pesos   0 0/100 M.N",0]
[null,"DOPI-033","CIMENTACIÓN A BASE DE SUELO-CEMENTO, A BASE DE MATERIAL DE BANCO, EN PROPORCIÓN DE 1:10, COMPACTADO CON COMPACTADOR DE IMPACTO EN CAPAS NO MAYORES DE 20 CM AL 95% DE SU P.V.S.M, PRUEBA AASHTO ESTÁNDAR, INCLUYE: HERRAMIENTA, SUMINISTRO DE AGUA PARA LOGRAR HUMEDAD ÓPTIMA, MEZCLADO, TENDIDO, EQUIPO, PRUEBAS DE COMPACTACIÓN, EQUIPO Y MANO DE OBRA. (MEDIDO EN TERRENO NATURAL POR SECCIÓN SEGÚN PROYECTOS.) TRABAJOS EN ESPACIO REDUCIDO.","M3",11.76,null," Pesos   0 0/100 M.N",0]
[null,"DOPI-034","PLANTILLA DE 10 CM DE ESPESOR DE CONCRETO HECHO EN OBRA DE F´C=150 KG/CM2, INCLUYE: PREPARACIÓN DE LA SUPERFICIE, NIVELACIÓN, MUESTREADO, COLADO, MANO DE OBRA, EQUIPO Y HERRAMIENTA.","M2",29.4,null," Pesos   0 0/100 M.N",0]
[null,"DOPI-035","SUMINISTRO Y COLOCACIÓN DE CONCRETO HECHO EN OBRA F'C=250 KG/CM2 RESISTENCIA NORMAL, INCLUYE: MATERIALES, COLADO, VIBRADO, DESCIMBRA, CURADO,  MANO DE OBRA, EQUIPO Y HERRAMIENTA.","M3",10.5,null," Pesos   0 0/100 M.N",0]
[null,"DOPI-036","SUMINISTRO E INSTALACIÓN DE ACERO DE REFUERZO CON VARILLA CORRUGADA (GRADO 42 ASTM A-615), DE LIMITE DE AFLUENCIA MINIMA 4200KG/CM2  DE DISTINTOS DIAMETROS (SEGÚN DISEÑO ESTRUCTURAL DEL PROYECTO). INCLUYE: MATERIAL, MANO DE OBRA, EQUIPO, HERRAMIENTA, CORTES, TRASLAPES, HABILITADO, AMARRES Y ACARREO HASTA EL LUGAR.","KG",892.5,null," Pesos   0 0/100 M.N",0]
[null,"DOPI-037","SUMINISTRO Y COLOCACION DE GROUT MORTERO AUTONIVELANTE PARA ANCLAJES, RELLENOS Y NIVELACIÓN. INCLUYE: MATERIALES,  MANO DE OBRA Y HERRAMIENTAS.","M3",0.02,null," Pesos   0 0/100 M.N",0]
[null,"DOPI-038","ANCLAS DE 5/8\" X 1.00 MTS. ROSCADAS ( 4 PIEZAS ) CON TUERCAS Y RONDANAS. INCLUYE: SUMINISTRO Y COLOCACION, ESTRIBOS DE 3/8\" A/C 15 CMS. MATERIAL Y MANO DE OBRA.","PZA",7,null," Pesos   0 0/100 M.N",0]
[null,"DOPI-039","SUMINISTRO Y COLOCACION DE PLACAS AHOGADAS EN DALAS Y CASTILLOS DE 10X10 CM X 3/16\" CON ANCLA SOLDADA DE 3/8\" DE 14 CM, 9 CM DE LARGO + 5 CM DE PATA, INCLUYE: TRAZO, NIVELACION, AMARRE, MATERIALES, MANO DE OBRA, EQUIPO Y HERRAMIENTA.","PZA",19,null," Pesos   0 0/100 M.N",0]
[null,"DOPI-040","FORJADO DE DADO DE 25 X 25 CMS Y 5 CMS DE ALTO CON MORTERO CEMENTO-ARENA DE RIO PROP. 1:4, PARA CUBRIR ANCLAS DE COLUMNAS, INCLUYE: CIMBRA, COLADO, TERMINADO PULIDO, MANO DE OBRA,  MATERIALES, EQUIPO Y  HERRAMIENTA.","PZA",7,null," Pesos   0 0/100 M.N",0]
[null,"A.4","ALBANILERIAS Y PINTURA",null,0,null,null,{"$f":"SUM(H64:H74)","v":0}]
[null,"DOPI-041","APLANADO DE 2.50 CM DE ESPESOR EN MURO CON MORTERO CEMENTO-ARENA 1:3, ACABADO PULIDO O APALILLADO, INCLUYE: MATERIALES, ACARREOS, DESPERDICIOS, MANO DE OBRA, ANDAMIOS, PLOMEADO, NIVELADO, REGLEADO, RECORTES, MANO DE OBRA, EQUIPO Y HERRAMIENTA.","M2",157.5,null," Pesos   0 0/100 M.N",0]
[null,"DOPI-042","BOQUILLA DE 15 A 20 CM DE ANCHO, CON MORTERO CEMENTO ARENA PROPORCIÓN 1:3, TERMINADO PULIDO, EN APERTURA DE VANOS DE PUERTAS Y VENTANAS, INCLUYE: SUMINISTRO, PULIDO, MANO DE OBRA, HERRAMIENTA Y EQUIPO.","M",52.5,null," Pesos   0 0/100 M.N",0]
[null,"DOPI-043","MURO DE BLOCK DE JALCRETO  A TEZON 11X14X28 CM. HASTA  3 HILAS ASENTADO CON MORTERO CEMENTO-ARENA DE RIO EN PROPORCION 1:3. INCLUYE: MATERIALES, MANO DE OBRA Y HERRAMIENTA.","M",15.75,null," Pesos   0 0/100 M.N",0]
[null,"DOPI-044","ANCLAJE DE CASTILLO EN CIMENTACIÓN  DE 0.40X0.40X0.40 MTS. CON CONCRETO F´c=150KG/CM2 H.O. INCLUYE: CIMBRA, MATERIALES, MANO DE OBRA,  HERRAMIENTA Y EQUIPO.","PZA",8,null," Pesos   0 0/100 M.N",0]
[null,"DOPI-045","MURO DE SOGA CON BOCK DE JALCRETO  11X14X28 CM. DE 14 CM. DE ESPESOR ASENTADO CON MORTERO CEMENTO ARENA PROP. 1:4. INCLUYE: SUMINISTRO Y ELABORACION, ACARREOS,  ANDAMIOS, EQUIPO, MATERIALES, HERRAMIENTA Y MANO DE OBRA.","M2",52.5,null," Pesos   0 0/100 M.N",0]
[null,"DOPI-046","MURO DE LADRILLO DE ADOBON DE 7X14X28 CM. ASENTADO CON MORTERO CEMENTO-ARENA DE RIO PROP. 1:4, HASTA  2 HILAS. INCLUYE: MATERIALES, MANO DE OBRA Y HERRAMIENTA, ANDAMIOS","M",15.75,null," Pesos   0 0/100 M.N",0]
[null,"DOPI-047","DALA Y CERRAMIENTOS  DE  SECCIÓN 15X20 CM. CON CONCRETO F'C=150 KG./CM2  Y 4 VARILLAS DE 3/8\", ESTRIBOS DE ALAMBRON DE 1/4\" @20CM. INCLUYE: CIMBRADO,  DESCIMBRADO, MATERIALES , MANO DE OBRA, HERRAMIENTA Y EQUIPO.","M",15.75,null," Pesos   0 0/100 M.N",0]
[null,"DOPI-048","CASTILLOS  DE  SECCIÓN 15X20  CM.CON CONCRETO F'C=150 KG. CM2 Y 4 VARILLAS DE 3/8\", ESTRIBOS DE ALAMBRON DE 1/4\" @20CM. HASTA UNA ALTURA DE 3.50 MTS, INCLUYE: ANDAMIOS, CIMBRADO, VIBRADO, CIMBRADO,  MATERIALES,  MANO DE OBRA, HERRAMIENTA Y EQUIPO.","M",21,null," Pesos   0 0/100 M.N",0]
[null,"DOPI-049","FILETES Y BOLEADOS, HECHOS CON MORTERO CEMENTO-ARENA EN PROPORCIÓN 1:3, TANTO INCLINADOS COMO VERTICALES A TIRO DE HILO Y ESCUADRA,  INCLUYE: DESPERDICIOS, ANDAMIOS Y ACARREO DE MATERIALES AL SITIO DE SU UTILIZACIÓN, A CUALQUIER NIVEL.","M",26.25,null," Pesos   0 0/100 M.N",0]
[null,"DOPI-050","SUMINISTRO Y APLICACIÓN DE PINTURA VINÍLICA COLOR BLANCO LÍNEA VINIMEX PREMIUM DE COMEX O SIMILAR A DOS MANOS, EN CUALQUIER COLOR, LIMPIANDO Y PREPARANDO LA SUPERFICIE CON SELLADOR, INCLUYE: MATERIALES, ANDAMIOS, MANO DE OBRA, EQUIPO Y HERRAMIENTA.","M2",787.5,null," Pesos   0 0/100 M.N",0]
[null,"DOPI-051","SUMINISTRO E INSTACIÓN DE MURO DIVISORIO A BASE DE CELOSIA DE BARRO RECOCIDO DE MEDIDAS 19 X 19 X 8 CM, PEGADO CON CEMENTO-ARENA DE RIO PROPORCION 1:4, DE 0.00 A 2.00 MTS DE ALTURA, INCLUYE; MATERIALES,  DESPERDICIOS, ANDAMIOS, MANO DE OBRA, EQUIPO Y HERRAMIENTA.","M2",90.3,null," Pesos   0 0/100 M.N",0]
[null,"A.5","ESTRUCTURA Y CUBIERTAS",null,0,null,null,{"$f":"SUM(H76:H87)","v":0}]
[null,"DOPI-052","SUMINISTRO E INSTALACIÓN DE LAMINA PERFORADA DE ACERO AL CARBON CALIBRE 18.  INCLUYE:  MATERIALES, ACARREOS, CORTES, ELEVACIÓN, NIVELACIÓN, DESPERDICIOS, HABILITADO, SOLDADURA, CORTES, ANDAMIOS, MANO DE OBRA, EQUIPO Y HERRAMIENTA.","M2 ",31.5,null," Pesos   0 0/100 M.N",0]
[null,"DOPI-053","SUMINISTRO E INSTALACIÓN DE LAMINA LISA ROLADA EN FRIO  CALIBRE 16. (PERFILES COMERIALES ASTM A366). INCLUYE:  MATERIALES, ACARREOS, CORTES, ELEVACIÓN, NIVELACIÓN, DESPERDICIOS, HABILITADO, SOLDADURA, CORTES, ANDAMIOS, MANO DE OBRA, EQUIPO Y HERRAMIENTA.","M2",21,null," Pesos   0 0/100 M.N",0]
[null,"DOPI-054","SUMINISTRO Y APLICACIÓN DE PINTURA ESMALTE EPOXICO ANTICORROSIVO DE ALTO PODER PARA PROTECCION DE ESTRUCTURAS MÉTALICAS COMEX O SIMILAR, COLOR BLANCO, EN ESTRUCTURAS METÁLICAS, INCLUYE: APLICACIÓN DE RECUBRIMIENTO A 4 MILÉSIMAS DE ESPESOR, MATERIALES, MANO DE OBRA, EQUIPO Y HERRAMIENTA.","KG",6562.5,null," Pesos   0 0/100 M.N",0]
[null,"DOPI-055","SUMINISTRO, HABILITADO E INSTALACIÓN  DE ACERO ESTRUCTURAL  (ASTM 572-50 ) PARA SOPORTE DE CUBIERTA. INCLUYE:  NIVELACIÓN, ELEMENTOS DE FIJACIÓN, CORTES, SOLDADURA, ACARREOS, DESPERDICIO, MATERIAL, MANO DE OBRA, EQUIPO Y HERRAMIENTA.","KG",4200,null," Pesos   0 0/100 M.N",0]
[null,"DOPI-056","SUMINISTRO E INSTALACIÓN DE LÁMINA MULTYPANEL COLOR BLANCO (TECHO) DE  1 1/2\" CAL. 26/26, EN CUBIERTAS, INCLUYE: MATERIALES, ACARREOS, CORTES, DESPERDICIOS, ELEVACIONES HASTA UNA ALTURA DE 18 MT, FIJACIÓN, SELLADO,  MANO DE OBRA, EQUIPO Y HERRAMIENTA.","M2",693,null," Pesos   0 0/100 M.N",0]
[null,"DOPI-057","SUMINISTRO E INSTALACIÓN DE MOLDURA CANALÓN DE LÁMINA PINTRO DE CAL. 18  CON UN DESARROLLO DE HASTA 1.00 M, CON REFUERZOS DE ANGULO DE FIERRO, PARA CONDUCCIÓN DE AGUA PLUVIAL DE CUBIERTAS A BAJANTES, CUALQUIER ALTURA, INCLUYE: MATERIALES, ACARREOS, CORTES, DESPERDICIOS, ANDAMIOS, ELEVACIONES, FIJACIÓN, MANO DE OBRA, EQUIPO Y HERRAMIENTA.","M",42,null," Pesos   0 0/100 M.N",0]
[null,"DOPI-058","SUMINISTRO E INSTALACIÓN DE MOLDURA GOTERÓN (CUBIERTA-PRETIL) DE LÁMINA PINTRO COLOR BLANCO DE CAL. 24 CON UN DESARROLLO DE HASTA 0.61 CM, (24\") CON REFUERZOS DE ANGULO DE FIERRO, PARA CONDUCCIÓN DE AGUA PLUVIAL DE CUBIERTAS A BAJANTES, A UNA ALTURA DE 10 MT. INCLUYE: MATERIALES, ACARREOS, CORTES, DESPERDICIOS, ANDAMIOS, ELEVACIONES, FIJACIÓN, SELLADO, MANO DE OBRA, EQUIPO Y HERRAMIENTA.","M",84,null," Pesos   0 0/100 M.N",0]
[null,"DOPI-059","SUMINISTRO E INSTALACIÓN DE MOLDURA TAPAGOTERO DE LÁMINA PINTRO COLOR BLANCO DE CAL. 24 CON UN DESARROLLO DE HASTA 0.40 CM, CON REFUERZOS DE ANGULO DE FIERRO, PARA CONDUCCIÓN DE AGUA PLUVIAL DE CUBIERTAS A BAJANTES, CUALQUIER ALTURA, INCLUYE: MATERIALES, ACARREOS, CORTES, DESPERDICIOS, ANDAMIOS, ELEVACIONES, FIJACIÓN, SELLADO, MANO DE OBRA, EQUIPO Y HERRAMIENTA.","M",84,null," Pesos   0 0/100 M.N",0]
[null,"DOPI-060","SUMINISTRO Y COLOCACIÓN DE CASQUILLO, DE 6\" DE DIAMETRO, COLOR BLANCO/FDO. CAL. 22,COLOCADA A UNA ALTURA DE HASTA 7 MTS,  INCLUYE: ANDAMIOS, MATERIALES, HERRAMIENTA, EQUIPO, MANO DE OBRA, Y LO NECESARIO PARA SU EJECUCIÓN.","Pza",6,null," Pesos   0 0/100 M.N",0]
[null,"DOPI-061","SUMINISTRO Y COLOCACION DE SELLADO CON SIKAFLEX ENTRE EL MULTYPANEL Y EL CANALON DE 1.5  CMS DE ANCHO A TODO LO LARGO, INCLUYE: ANDAMIOS, MATERIALES, ACARREOS,  DESPERDICIOS, ELEVACIONES, FIJACION, MANO DE OBRA, EQUIPO Y HERRAMIENTA.","M",42,null,{"$f":"Enletras(F85)","v":" Pesos   0 0/100 M.N"},{"$f":"ROUND((F85*E85),2)","v":0}]
[null,"DOPI-062","SUMINISTRO E INSTALACION DE LAMINA ACRILICA T-952 GLAMET 1.5\" BCO/LECH EN CUBIERTA, INCLUYE: MATERIALES, ACARREOS, CORTES, ELEVACION, FIJACION, ANDAMIOS, MANO DE OBRA, EQUIPO Y HERRAMIENTA.","M2",52.5,null," Pesos   0 0/100 M.N",0]
[null,"DOPI-063","SUMINISTRO E INSTALACION DE TAPAS DE BAJANTES DE PVC  CON LAMINA PINTRO CAL 24 CON UN DESARROLLO DE 48 CMS TIPO ANGULO X 3.05 M DE ALTO, INCLUYE: ANDAMIOS, MATERIALES, ACARREOS, CORTES, DESPERDICIOS, ELEVACIONES, FIJACION, MANO DE OBRA, EQUIPO Y HERRAMIENTA.","PZA",7,null," Pesos   0 0/100 M.N",0]
[null,"A.6","ELECTRICIDAD",null,0,null,null,{"$f":"SUM(H89:H110)","v":0}]
[null,"DOPI-064","SALIDA ELÉCTRICA PARA LÁMPARA CON TUBO CONDUIT DIÁMETRO HASTA 3/4\" PARED GRUESA, 2HILOS CABLE CALIBRE 12, CON UN DESARROLLO DE HASTA 5 M. INCLUYE: CAJA, PLACA, REGISTROS, ACCESORIOS, ANDAMIOS, MATERIALES, EQUIPO, HERRAMIENTAS Y MANO DE OBRA.","SAL ",21,null,{"$f":"Enletras(F89)","v":" Pesos   0 0/100 M.N"},{"$f":"ROUND((F89*E89),2)","v":0}]
[null,"DOPI-065","SALIDA ELECTRICA OCULTA PARA APAGADORES Y LUMINARIAS, CON TUBERIA CONDUIT DE 1\", 3 HILOS DE CABLE CAL. 10, CAJA CHALUPA GALV., CINTA AISLANTE, HASTA 7.00 MT. DE LONGITUD, INCLUYE: MANO DE OBRA, ACARREOS, DESPERDICIOS, HERRAMIENTA Y TODO LO NECASARIO PARA SU CORRECTA EJECUCION.","SAL ",5,null," Pesos   0 0/100 M.N",0]
[null,"DOPI-066","SALIDA ELECTRICA PARA CONTACTO DUPLEX POLARIZADO Y/O APAGADOR SENCILLO, OCULTA, CON TUBERIA CONDUIT GALVANIZADA PARED DELGADA DE HASTA 1\", CABLE VINANEL THW-LS 600 V. A 75° C, 90° C, MARCA CONDUCTORES MONTERREY O SIMILAR (VIAKON-PROTOCOLIZADO), CABLE VINANEL 21 THW-LS 600 V. A 75° C, 90° C, MARCA CONDUMEX (CONDUMEX PROTOCOLIZADO), CALIBRE 10 Y 12, CAJAS DE REGISTRO CUADRADAS, CHALUPAS Y TAPAS DE PVC REFORZADO, CONTACTO Y APAGADOR QUINZIÑO O SIMILAR, TAPA DE ALUMINIO, INCLUYE: HERRAMIENTA, TRAZO, RANURAS, CONEXIÓN A TIERRA, ACCESORIOS, MATERIALES MENORES Y DE CONSUMO, PRUEBAS, DESPERDICIOS Y ACARREO DEL MATERIAL AL SITIO DE SU COLOCACIÓN, A CUALQUIER NIVEL, EQUIPO Y MANO DE OBRA.","SAL ",5,null," Pesos   0 0/100 M.N",0]
[null,"DOPI-067","SALIDA  ELÉCTRICA  PARA ALIMENTACIÓN DE CENTRO DE CARGA  CON  TUBERIA CONDUIT PARED GRUESA DE  1 1/4\", 2 HILOS  CABLE CALIBRE 12 ,   CON UN DESARROLLO  DE HASTA 20 M. INCLUYE:   CAJA,  PLACA,   REGISTROS  Y ACCESORIOS, ANDAMIOS, MATERIALES, EQUIPO,  HERRAMIENTAS   Y MANO DE  OBRA.","SAL ",37,null," Pesos   0 0/100 M.N",0]
[null,"DOPI-068","SUMINISTRO Y COLOCACIÓN DE CENTRO DE CARGA QO2 NEMA 1 TIPO SOBREPONER, INCLUYE: MATERIALES, MANO DE OBRA Y HERRAMIENTA","PZA",67,null," Pesos   0 0/100 M.N",0]
[null,"DOPI-069","SUMINISTRO Y COLOCACIÓN DE CENTRO DE CARGA QO4 NEMA 1 TIPO SOBREPONER, INCLUYE: MATERIALES, MANO DE OBRA Y HERRAMIENTA","PZA",10,null," Pesos   0 0/100 M.N",0]
[null,"DOPI-070","SUMINISTRO Y COLOCACIÓN DE INTERRUPTOR TERMOMAGNETICO DE 1X15-30 AMP. INCLUYE: MATERIAL, MANO DE OBRA Y HERRAMIENTA","PZA",134,null," Pesos   0 0/100 M.N",0]
[null,"DOPI-071","BASE DE MEDICION MONOFASICO MCA. IUSA DE 100 AMP INCLUYE: SUMINISTRO Y COLOCACION, MATERIALES MENORES PARA SU INSTALACION, MANO DE OBRA Y TODO LO NECESARIO PARASU CORRECTA EJECUCION.","PZA",34,null," Pesos   0 0/100 M.N",0]
[null,"DOPI-072","SUMINISTRO E INSTALACIÓN DE TUBERÍA  CONDUIT DE 1 1/4\" PARED GRUESA. INCLUYE: MATERIALES, HERRAMIENTA, ACCESORIOS, LIMPIEZA Y MANO DE OBRA.","M",52.5,null," Pesos   0 0/100 M.N",0]
[null,"DOPI-073","SUMINISTRO E INSTALACIÓN DE CABLE MONOPOLAR DE COBRE AISLAMIENTO THHW, 600V, CAL. 12 AWG MARCA CONDUMEX O SIMILAR, INCLUYE: HERRAMIENTA, MATERIALES, CONEXIÓN,  PRUEBAS, EQUIPO Y MANO DE OBRA.","M",126,null," Pesos   0 0/100 M.N",0]
[null,"DOPI-074","DESMONTAJE DE SALIDA ELECTRICA EXISTENTE (CONTACTO, APAGADOR, LUMINARIA, CENTROS DE CARGA Y/O BASES DE MEDICION) SIN RECUPERACIÓN, A UNA ALTURA DE HASTA 12 M. INCLUYE: ACARREO, DESCENSO Y RETIRO FUERA DE LA OBRA, AL LUGAR AUTORIZADO, EQUIPO, ANDAMIOS, MATERIALES, HERRAMIENTA Y MANO DE OBRA.","SAL   ",34,null," Pesos   0 0/100 M.N",0]
[null,"DOPI-075","SUMINISTRO E INSTALACIÓN DE VARILLA PARA TIERRA FISICA COPER WELD 5/8\" MCA. MEXIN 3.00 MTS., INCLUYE: SOLDADURAS, 4 MT DE CABLE DESNUDO CAL. 2 , CANALIZACION, VARILLA, CARGAS, ACARREOS, EQUIPOS Y MANO DE OBRA.","PZA",34,null," Pesos   0 0/100 M.N",0]
[null,"DOPI-076","SUMINISTRO  Y COLOCACION DE LAMPARA DE SOBREPONER SATINADA CUADRADA 18 WATTS MEDIDAS HASTA 55 CM X 55 CM, LUZ LED BLANCA O CÁLIDA, MATERIAL METAL, A CUALQUIER ALTURA Y/O NIVEL, CONECTADA  DE SALIDA DEL TECHO  A LAMPARA,INCLUYE: ANDAMIOS,   MATERIALES  DE FIJACION,   HERRAMIENTA   Y MANO DE OBRA.","PZA",9,null," Pesos   0 0/100 M.N",0]
[null,"DOPI-077","SUMINISTRO E INSTALACIÓN  DE TUBERIA CONDUIT GALVANIZADA DE 3/4\" PARED GRUESA. INCLUYE: MATERIAL, MANO DE OBRA, HERRAMIENTA Y ANDAMIOS.","M",472.5,null," Pesos   0 0/100 M.N",0]
[null,"DOPI-078","SUMINISTRO E INSTALACIÓN DE  CABLE DE COBRE THW CAL. 8, INCLUYE: MATERIALES, MANO DE OBRA, EQUIPO Y HERRAMIENTA.","M",2352,null," Pesos   0 0/100 M.N",0]
[null,"DOPI-079","SUMINISTRO E INSTALACIÓN DE CABLE MONOPOLAR DE COBRE AISLAMIENTO THHW, 600V, CAL. 12 AWG MARCA CONDUMEX O SIMILAR, INCLUYE: HERRAMIENTA, MATERIALES, CONEXIÓN,  PRUEBAS, EQUIPO Y MANO DE OBRA.","M",52.5,null," Pesos   0 0/100 M.N",0]
[null,"DOPI-080","SUMINISTRO Y COLOCACION DE REFLECTOR LED DE CUARZO SMD 30 W CARCASA NEGRA, LUZ FRIA, CONECTADO A SALIDA DEL PARED A REFLECTOR, INCLUYE: ANDAMIOS, MATERIALES DE FIJACION, EQUIPO, HERRAMIENTA Y MANO DE OBRA.","PZA",4,null," Pesos   0 0/100 M.N",0]
[null,"DOPI-081","SUMINISTRO E INSTALACIÓN DE LUMINARIA TIPO ESTANCA DE SOBREPONER O SUSPENDER IMPERMEABLE AL POLVO Y LA HUMEDAD DE DOS LÁMPARAS LED T8 DE 18W, LA  WP2X18. INCLUYE: INSTALACIÓN QUE INCLUYE ACCESORIOS,  ANDAMIOS, ELEVACIONES, HERRAMIENTAS, LIMPIEZA MANO DE OBRA.","PZA",16,null," Pesos   0 0/100 M.N",0]
[null,"DOPI-082","SUMINISTRO E INSTALACION DE MORDAZA DE ACERO GALVANIZADA DE 1 1/4\" X 3/8\" PARA COLGANTEAR LINEAS ELECTRICAS DE CONDUITS, INCLUYE: ANDAMIOS, MATERIALES, MANO DE OBRA, EQUIPO Y HERRAMIENTA.","PZA",210,null," Pesos   0 0/100 M.N",0]
[null,"DOPI-083","SALIDA ELECTRICA PARA LAMPARAS, OCULTA, CON TUBERIA DE POLIDUCTO DE DIAMETRO DE HASTA 1\", CABLE VINANEL THW-LS 600 V. A 75° C, 90° C, MARCA CONDUCTORES MONTERREY O SIMILAR (VIAKON-PROTOCOLIZADO), CABLE VINANEL 21 THW-LS 600 V. A 75° C, 90° C, MARCA CONDUMEX (CONDUMEX PROTOCOLIZADO), CALIBRE 10 Y 12, CAJAS DE REGISTRO CUADRADAS, CHALUPAS Y TAPAS DE PVC REFORZADO, INCLUYE: HERRAMIENTA, TRAZO, RANURAS, CONEXIÓN A TIERRA, ACCESORIOS, MATERIALES MENORES Y DE CONSUMO, PRUEBAS, DESPERDICIOS Y ACARREO DEL MATERIAL AL SITIO DE SU COLOCACIÓN, A CUALQUIER NIVEL, EQUIPO Y MANO DE OBRA.","SAL ",15,null," Pesos   0 0/100 M.N",0]
[null,"DOPI-084","POSTE LUMINOSO MODELO CUBIC MARCA CONSTRULITA DE TRES METROS DE ALTURA CON ILUMINACIÓN BILATERAL,FUENTE DE LUZ LED INTEGRADO, FLUJO LUMINOSO NOMINAL (LM) 6,700 EFICIENCIA NOMINAL (LM/W) >102 TCC 4000K IRC 70 ÁNGULO DE APERTURA 180° POTENCIA 66W TENSIÓN 127-277V~ FRECUENCIA DE OPERACIÓN 60 HZ TEMPERATURA DE OPERACIÓN -20 A 40 °C DRIVER INTEGRADO PROTOCOLO DE CONTROL ON/OFF VIDA PROMEDIO / TIPO DE VIDA 25,000 L70 MATERIAL DEL CUERPO ALUMINIO MATERIAL DE LA ÓPTICA / DIFUSOR PLÁSTICO INYECTADO ACABADO PINTURA ELECTROESTÁTICA COLOR GRIS IP 65 TIPO DE INSTALACIÓN SOBREPONER , INCLUYE: SUMINISTRO DE MATERIAL, MANO DE OBRA, ACCESORIOS DE INSTALACION, COMPLEMENTRIOS, SOPORTE, ANDAMIOS, HERRAMIENTA Y EQUIPO.","PZA",4,null," Pesos   0 0/100 M.N",0]
[null,"DOPI-085","SUMINISTRO E INSTALACIÓN DE LUMINARIO DE EXTERIOR  EMPOTRADO EN PISO MODELO COIMBRA H-600/S 100-240 V ~ LAMINA DE ACERO, INCLUYE:  SUMINISTRO DE MATERIAL, MANO DE OBRA, ACCESORIOS DE INSTALACION, COMPLEMENTRIOS, SOPORTE, ANDAMIOS, HERRAMIENTA Y EQUIPO.","PZA",10,null," Pesos   0 0/100 M.N",0]
[null,"A.7","FONTANERIA Y BAJANTES",null,0,null,null,{"$f":"SUM(H112:H129)","v":0}]
[null,"DOPI-086","DESMONTAJE Y DESCONEXIÓN DE SALIDA HIDRAULICA CON TUBERIA DE DIAMETROS DE HASTA 1\", INCLUYE: EXCAVACIÓN, RELLENOS, RANURAS, RESANES, MATERIAL PARA CANCELACIÓN, ACARREOS DENTRO DE LA OBRA Y POSTERIORMENTE DONDE INDIQUE SUPERVISIÓN FUERA DE LA OBRA, MANO DE OBRA, EQUIPO Y HERRAMIENTA.","PZA",8,null,{"$f":"Enletras(F112)","v":" Pesos   0 0/100 M.N"},{"$f":"ROUND((F112*E112),2)","v":0}]
[null,"DOPI-087","RETIRO DE TUBERIA GALV. DE 1/2 Y/O 3/4\", INCLUYE:HERRAMIENTA, MANO DE OBRA, ACARREO INTERNO Y APILE PARA SU POSTERIOR  RETIRO.","M",42,null," Pesos   0 0/100 M.N",0]
[null,"DOPI-088","SUMINISTRO Y COLOCACIÓN DE TUBO DE PVC DE 4\" DE DIÁMETRO, INCLUYE: ACARREOS, MATERIALES, MANO DE OBRA, EQUIPO Y HERRAMIENTA.","M",42,null," Pesos   0 0/100 M.N",0]
[null,"DOPI-089","SUMINISTRO Y COLOCACIÓN DE TUBO DE PVC DE 2\" DE DIÁMETRO, INCLUYE: ACARREOS, MATERIALES, MANO DE OBRA, EQUIPO Y HERRAMIENTA.","M",42,null," Pesos   0 0/100 M.N",0]
[null,"DOPI-090","SALIDA HIDRÁULICA DE AGUA FRÍA Y/O CALIENTE, PARA ALIMENTACIÓN A MUEBLE SANITARIO, CONSISTENTE EN TUBERÍA Y CONEXIONES DE CPVC DE 1/2\" A 2\" DE DIÁMETRO,  INCLUYE: TRAZO, RANURAS, CÁMARAS CONTRA GOLPE DE ARIETE, CONEXIONES, (COPLES, CODOS, TAPONES, TEES, YEES, REDUCCIONES, ETC),  VÁLVULAS, TUERCAS UNIÓN EN CUADROS DE VÁLVULAS, MATERIALES MENORES Y DE CONSUMO, PEGAMENTOS, ELEMENTOS DE FIJACIÓN, DESPERDICIOS,  HERRAMIENTAS, LIMPIEZA, MANO DE OBRA, PRUEBAS HIDROSTÁTICAS, FLETES Y ACARREO DE LOS MATERIALES AL SITIO DE SU INSTALACIÓN.","SAL   ",8,null," Pesos   0 0/100 M.N",0]
[null,"DOPI-091","LINEA DE LLENADO PARA TINACO ELEVADO A BASE DE TUBERIA DE ACERO GALVANIZADO DE 1 1/4\" DESDE BOMBA DE CISTERNA, INCLUYE: RANURAS, RESANES, CODOS, NIPLES, CORTES, MATERIAL, HERRAMIENTA Y MANO DE OBRA.","M",21,null," Pesos   0 0/100 M.N",0]
[null,"DOPI-092","SUMINISTRO Y COLOCACION DE TINACO TRICAPA DE 1100 LTS ROTOPLAS CON ACCESORIOS DE VALVULA DE LLENADO, MULTICONECTOR CON VALVULA ESFERA Y TUERCA UNION, FLOTADOR NUMERO 5, JARRO DE AIRE Y FILTRO ESTANDAR, INCLUYE: ACARREO, ELEVACIONES, CORTES, FIJACION, LIMPIEZA GRUESA, MATERIALES, MANO DE OBRA, EQUIPO Y HERRAMIENTA.","PZA",1,null," Pesos   0 0/100 M.N",0]
[null,"DOPI-093","SUMINISTRO   Y   COLOCACIÓN DE BOMBA CON PRESURIZADOR AUTOMÁTICO MÚNICH 1 HP 120 VOLTS 80 L/MIN 1 PULGADA, INCLUYE: PRUEBAS, PUESTA A PUNTO, CONEXIONES, CODOS, NIPLES, CORTES, MATERIAL, HERRAMIENTA Y MANO DE OBRA.","PZA",1,null," Pesos   0 0/100 M.N",0]
[null,"DOPI-094","DESMONTAJE Y DESCONEXIÓN DE SALIDA SANITARIA, CON TUBERIA DE  DIAMETROS DE HASTA 6\", INCLUYE: EXCAVACIÓN, RELLENOS, RANURAS, RESANES, MATERIAL PARA CANCELACIÓN, ACARREOS DENTRO DE LA OBRA Y POSTERIORMENTE DONDE INDIQUE SUPERVISIÓN FUERA DE LA OBRA, MANO DE OBRA, EQUIPO Y HERRAMIENTA.","PZA",8,null," Pesos   0 0/100 M.N",0]
[null,"DOPI-095","SUMINISTRO Y COLOCACIÓN DE TUBO DE PVC DE 2\" DE DIÁMETRO, INCLUYE: ACARREOS, MATERIALES, MANO DE OBRA, EQUIPO Y HERRAMIENTA.","M",21,null," Pesos   0 0/100 M.N",0]
[null,"DOPI-096","SUMINISTRO Y COLOCACIÓN DE TUBO DE PVC DE 4\" DE DIÁMETRO, INCLUYE: ACARREOS, MATERIALES, MANO DE OBRA, EQUIPO Y HERRAMIENTA.","M",21,null," Pesos   0 0/100 M.N",0]
[null,"DOPI-097","SUMINISTRO Y COLOCACIÓN DE TUBO DE PVC DE 6\" DE DIÁMETRO, INCLUYE: ACARREOS, MATERIALES, MANO DE OBRA, EQUIPO Y HERRAMIENTA.","M",21,null," Pesos   0 0/100 M.N",0]
[null,"DOPI-098","SALIDA SANITARIA CON TUBERIA DE PVC SANITARIO CALIDAD DE NORMA DE 6\" PULGADAS, INCLUYE: CONEXIONES COMO CODOS Y TEES, DESDE EL PRIMER REGISTRO HASTA EL MUEBLE, MATERIALES MENORES, PRUEBAS, DESPERDICIOS Y ACARREO DE MATERIALES AL SITIO DE SU COLOCACION.","SAL   ",3,null," Pesos   0 0/100 M.N",0]
[null,"DOPI-099","SALIDA SANITARIA CON TUBERIA DE PVC SANITARIO CALIDAD DE NORMA DE 4\" PULGADAS, INCLUYE: CONEXIONES COMO CODOS Y TEES, DESDE EL PRIMER REGISTRO HASTA EL MUEBLE, MATERIALES MENORES, PRUEBAS, DESPERDICIOS Y ACARREO DE MATERIALES AL SITIO DE SU COLOCACION.","SAL   ",4,null," Pesos   0 0/100 M.N",0]
[null,"DOPI-100","SALIDA SANITARIA CON TUBERIA DE PVC SANITARIO CALIDAD DE NORMA DE 2\" PULGADAS, INCLUYE: CONEXIONES COMO CODOS Y TEES, DESDE EL PRIMER REGISTRO HASTA EL MUEBLE, MATERIALES MENORES, PRUEBAS, DESPERDICIOS Y ACARREO DE MATERIALES AL SITIO DE SU COLOCACION.","SAL   ",8,null," Pesos   0 0/100 M.N",0]
[null,"DOPI-101","SUMINISTRO Y COLOCACIÓN DE REGISTRO SANITARIO FORJADO DE 0.80 M X 0.80 M Y HASTA 1.20 M DE PROFUNDIDAD, MEDIDAS INTERIORES, MUROS CON BLOCK 11 X 14 X 28 CM, COLOCADO A SOGA, JUNTEADO CON MORTERO CEMENTO ARENA 1:3, MARCO Y CONTRAMARCO DE ÁNGULO DE 2\" X 1/4\" DE ESPESOR, TAPA DE CONCRETO DE CONCRETO F´C= 200 KG/CM2 HECHO EN OBRA ARMADO CON MALLA ELECTROSOLDADA Y APLANADO INTERIOR CON MORTERO CEMENTO ARENA 1:4, INCLUYE: HERRAMIENTA, CIMBRA, DESCIMBRA, MATERIALES, EQUIPO Y MANO DE OBRA.","PZA",2,null," Pesos   0 0/100 M.N",0]
[null,"DOPI-102","SUMINISTRO Y COLOCACIÓN DE TUBO DE PVC DE 8\" DE DIÁMETRO, INCLUYE: ACARREOS, MATERIALES, MANO DE OBRA, EQUIPO Y HERRAMIENTA.","M",73.5,null," Pesos   0 0/100 M.N",0]
[null,"DOPI-103","LIMPIEZA GRUESA DE OBRA DURANTE Y HASTA LA ENTREGA DE LA MISMA RETIRANDO MATERIAL DE ESCOMBRO O BASURA DE TRABAJOS RELACIONADOS. INCLUYE: MANO DE OBRA, HERRAMIENTA,  EQUIPO.","M2",690.9,null," Pesos   0 0/100 M.N",0]
[null,"A.8","SEÑALETICA",null,0,null,null,{"$f":"SUM(H131:H135)","v":0}]
[null,"DOPI-104","SUMINISTRO Y APLICACIÓN DE PINTURA DE TRÁFICO PESADO  PARA BALIZADO DE HASTA .20 CM DE ANCHO ( DIMENSIONES SEGUN DISEÑO ) EN CAJONES DE ESTACIONAMIENTO DE INCLUYE: TRAZO, DOS APLICACIONES COMO MINIMO, LIMPIANDO Y PREPARANDO LA SUPERFICIE, MATERIALES, ACARREOS, DESPERDICIOS, MANO DE OBRA, EQUIPO Y HERRAMIENTA, LIMPIEZA DURANTE Y AL FINALIZAR LA OBRA Y TODO LO NECESARIO PARA SU CORRECTA EJECUCIÓN","M2",32.549999999999997,null,{"$f":"Enletras(F131)","v":" Pesos   0 0/100 M.N"},{"$f":"ROUND((F131*E131),2)","v":0}]
[null,"DOPI-105","SUMINISTRO Y APLICACIÓN DE PINTURA DE TRÁFICO PESADO  PARA BALIZADO  EN CAJONES DE DISCAPACITADOS, INCLUYE: TRAZO, LOGOTIPO, DOS APLICACIONES, LIMPIANDO Y PREPARANDO LA SUPERFICIE, MATERIALES, ACARREOS, DESPERDICIOS, MANO DE OBRA, EQUIPO, HERRAMIENTA Y TODO LO NECESARIO PARA SU CORRECTA EJECUCIÓN","M2",5.25,null," Pesos   0 0/100 M.N",0]
[null,"DOPI-106","SUMINISTRO Y COLOCACIÓN DE SEÑALAMIENTO VERTICAL (RESTRICTIVO, INFORMATIVO O PREVENTIVO) DE 0.61X0.61 M EN LÁMINA GALVANIZADA CALIBRE 16, CON VINIL REFLEJANTE GRADO INGENIERÍA, INCLUYE: HERRAMIENTA, SUMINISTRO Y COLOCACIÓN, POSTE DE PTR GALVANIZADO DE 2\"X2\" Y CON ALTURA LIBRE DE MÍNIMO 2.50 M DESDE NIVEL DE SUELO A PARTE INFERIOR DEL TABLERO DE LA SEÑAL EN CALIBRE 12, DADO DE CONCRETO DE F¨C= 150 KG/CM2 HECHO EN OBRA DE 40X40X80 CM, MATERIALES, MANO DE OBRA, EQUIPO Y HERRAMIENTA.","PZA",6,null," Pesos   0 0/100 M.N",0]
[null,"DOPI-107","ZONA PEATONAL PETATILLO CON LINEAS INTERCALADAS DE 40 CM. DE ANCHO EN PISO,  INCLUYE: PINTURA DE TRAFICO AMARILLA Y/O BLANCA, MICROESFERA A RAZON DE 800 GR. POR LITRO DE PINTURA, TRAZO, LIMPIEZA, MATERIALES Y MANO DE OBRA.","M2",26.25,null," Pesos   0 0/100 M.N",0]
[null,"DOPI-108","SUMINISTRO Y APLICACIÓN DE SEÑALETICA VERTICAL ( RUTA DE EVACUACION, IDENTIFICACION DE REAS, EXTINTORES, IDENTIFICACION DE NIVELES, ETC.) INCLUYE: SEÑALIZACIONES, COLOCACIÓN, MANO DE OBRA, EQUIPO Y HERRAMIENTA Y TODO LO NECESARIO PARA SU CORRECTA EJECUCIÓN NORMA S.C.T. N-CTR-K-1-07-001/00)","PZA",26,null," Pesos   0 0/100 M.N",0]
[null,"A.9","FACHADAS",null,0,null,null,{"$f":"SUM(H137:H147)","v":0}]
[null,"DOPI-109","SUMINISTRO Y COLOCACION DE MURO DE DUROCK RESISTENTE A LA HUMEDAD DE 12CM DE ESPESOR DOBLE CARA, CONCEPTO INCLUYE: MANO DE OBRA, HERRAMIENTA, TORNILLOS, ANCLAS, METALES, REFUERZOS, ANCLAS, CLAVOS, CINTA, BASECOAT, EQUIPO, MANO DE OBRA ESPECIALIZADA Y HERRAMIENTA.","M2",86.1,null,{"$f":"Enletras(F137)","v":" Pesos   0 0/100 M.N"},{"$f":"ROUND((F137*E137),2)","v":0}]
[null,"DOPI-110","SUMINISTRO E INSTALACION DE PLAFON LISO DE DUROCK RESISTENTE A LA HUMEDAD DE 1/2\", CON BASTIDOR DE CANAL LISTON, ANGULO Y CANALETA DE CARGA CALIBRE 26, CALAFATEADO CON PERFACINTA Y REDIMIX, INCLUYE:  TRAZO, FIJACION, FULMINANTE Y CLAVO, COLGANTEO, MATERIALES, MANO DE OBRA, EQUIPO Y HERRAMIENTA.","M2",43.05,null," Pesos   0 0/100 M.N",0]
[null,"DOPI-111","SUMINISTRO Y COLOCACION DE LUMINARIO EMPOTRADO LED ESTÉVEZ DE 5 PULGADAS COLOR BLANCO, DE 12 WATTS,  INCLUYE: MANO DE OBRA, HERRAMIENTA, TORNILLOS, ANCLAS Y CONEXIÓN.","PZA",26,null," Pesos   0 0/100 M.N",0]
[null,"DOPI-112","SUMINISTRO E INSTALACION DE LETRERO A BASE DE PANEL DE ALUMINIO COMPUESTO ACABADO CEPILLADO NATURAL DIMENSIONES DE HASTA 0.80 MTS X 2.00 MTS, CON LEYENDA DE LA INSTITUCION EN LETRAS CANTEADAS DE PANEL COMPUESTO DE ALUMINIO COLOR MOUSE ( MERCADO LAS FUENTES) EN LETRA  TIPO ISIDORA DE MEDIAS DE 40 CM DE ALTURA X 20 CM DE ANCHO CON SEPARACIONES DE 3\" ENTRE CADA LETRA,  DEL MUNICIPIO DE ZAPOPAN DE MEDIDAS APROXIMADAS DE 50 CM X 30 CM), CONCEPTO INCLUYE: ESTRUCTURA DE ANCLAJE A FACHADA A CUALQUIER ALTURA CUALQUIER DISTANCIA, DEMOLICIONES, RESANES, PLACAS, LIMPIEZA, RETIRO DE ESCOMBRO Y TODO LO NECESARIO PARA SU CORRECTA EJECUCION","PZA",1,null," Pesos   0 0/100 M.N",0]
[null,"DOPI-113","SUMINISTRO E INSTALACION DE LETRERO A BASE DE PANEL DE ALUMINIO COMPUESTO ACABADO CEPILLADO NATURAL DIMENSIONES DE HASTA 1.50 MTS X 5.40 MTS, CON LEYENDA DE LA INSTITUCION EN LETRAS CANTEADAS DE PANEL COMPUESTO DE ALUMINIO COLOR MOUSE ( MERCADO LAS FUENTES) EN LETRA  TIPO ISIDORA DE MEDIAS DE 40 CM DE ALTURA X 20 CM DE ANCHO CON SEPARACIONES DE 3\" ENTRE CADA LETRA,  DEL MUNICIPIO DE ZAPOPAN DE MEDIDAS APROXIMADAS DE 50 CM X 30 CM), CONCEPTO INCLUYE: ESTRUCTURA DE ANCLAJE A FACHADA A CUALQUIER ALTURA CUALQUIER DISTANCIA, DEMOLICIONES, RESANES, PLACAS, LIMPIEZA, RETIRO DE ESCOMBRO Y TODO LO NECESARIO PARA SU CORRECTA EJECUCION","PZA",1,null," Pesos   0 0/100 M.N",0]
[null,"DOPI-114","SUMINISTRO E INSTALACIÓN DE PISO DE MOSAICO ARTESANAL PULIDO Y SELLADO DE 20 X 20 X2 CM DE ESPESOR, DISEÑO Y COLORES SEGÚN SUPERVISIÓN, INCLUYE: NIVELACIÓN, CORTES, DESPERDICIOS, ACARREOS, MATERIAL, MANO DE OBRA Y HERRAMIENTA.","M2",84,null," Pesos   0 0/100 M.N",0]
[null,"DOPI-115","SUMINISTRO, HABILITADO Y COLOCACIÓN DE TUBO ESTRUCTURAL, RECTO, EN BASE A PROYECTO, INCLUYE: HERRAMIENTA, INGENIERÍA DE TALLER, CORTES, BISELADOS, SOLDADURA, NIVELACIÓN, ALINEAMIENTO Y PLOMEADO, ANDAMIOS, FONDO PRIMARIO ALQUIDÁLICO ANTICORROSIVO, GRÚA ARTICULADA, CARGA, TRASLADO, DESPERDICIOS, EQUIPO Y MANO DE OBRA.","KG",1489.51,null," Pesos   0 0/100 M.N",0]
[null,"DOPI-116","SUMINISTRO, HABILITADO Y COLOCACIÓN DE TUBO ESTRUCTURAL, ROLADO, EN BASE A PROYECTO, INCLUYE: HERRAMIENTA, INGENIERÍA DE TALLER, CORTES, BISELADOS, SOLDADURA, NIVELACIÓN, ALINEAMIENTO Y PLOMEADO, ANDAMIOS, FONDO PRIMARIO ALQUIDÁLICO ANTICORROSIVO, GRÚA ARTICULADA, CARGA, TRASLADO, DESPERDICIOS, EQUIPO Y MANO DE OBRA.","KG",919.44,null," Pesos   0 0/100 M.N",0]
[null,"DOPI-117","SUMINISTRO Y APLICACIÓN DE PINTURA DE ESMALTE 100 MATE COMEX O SIMILAR, COLOR BLANCO, EN ESTRUCTURAS METÁLICAS, INCLUYE: APLICACIÓN DE RECUBRIMIENTO A 4 MILÉSIMAS DE ESPESOR, MATERIALES, MANO DE OBRA, EQUIPO Y HERRAMIENTA.","KG",2408.9499999999998,null," Pesos   0 0/100 M.N",0]
[null,"DOPI-118","SUMINISTRO Y COLOCACION DE GROUT MORTERO AUTONIVELANTE PARA ANCLAJES, RELLENOS Y NIVELACIÓN. INCLUYE: MATERIALES,  MANO DE OBRA Y HERRAMIENTAS.","M3",0.01,null," Pesos   0 0/100 M.N",0]
[null,"DOPI-119","SUMINISTRO, CONFECCIÓN E INSTALACIÓN DE MEMBRANA PRETENSADA DE FÁBRICA (PRECONTRAINT), MODELO FLEXLIGHT ADVANCED 902 S2 O SIMILAR EN CALIDAD, ESFUERZO MÁXIMO DE 409 KG/M, RESISTENCIA DE 1,734 KG/M, FACTOR DE SEGURIDAD MÍNIMO DE 4.24, COMPUESTA DE TEJIDO DTEX Y MICROFILAMENTOS REVESTIDOS DE FLORURO DE POLIVINILIDENO PVC Y RECUBIERTO CON TRATAMIENTO DE PVDF PLASTIFICADO, CUMPLE CON ISO 9001, ISO 14001, INCLUYE: CARTA GARANTÍA DEL PROVEEDOR DE 15 AÑOS, HERRAMIENTA, MATERIALES, PATRONAJE, ACARREOS, ELEVACIONES, CORTES, DESPERDICIOS, SISTEMA DE FIJACIÓN CON CABLE CATENARIO DE 1/2\" TIPO BARRACUDA EIPS 6X19 CON ALMA DE ACERO GALVANIZADO, TERMINAL VACIADA ABIERTA EN UN EXTREMO Y TERMINAL VACIADA CERRADA EN OTRO, AMBAS DE ACERO FORJADO GALVANIZADO EN CALIENTE, VACIADAS CON RESINA Y CUMPLA NORMA ASTM D695, TENSOR QUIJADA - QUIJADA DE 3/4\" X 6\" EN UN EXTREMO, DE ACERO FORJADO GALVANIZADO EN CALIENTE CON ROSCA UNC., EQUIPO Y MANO DE OBRA CALIFICADA.","M2",73.5,null," Pesos   0 0/100 M.N",0]
[]
[]
[]
[]
[]
[null,null,"RESUMEN DE PARTIDAS"]
[null,null,{"$f":"C8","v":"Mantenimiento y adecuacion de espacios con trabajos de sustitucion de cubiertas, pisos de concreto, instalaciones electricas, hidraulicas, sanitarias, asi obras complementarias, en el mercado de las Fuentes, con domicilio c. San Antonio #110, Las Fuentes, en Zapopan Jalisco."}]
[]
[]
[null,{"$f":"B13","v":0},{"$f":"C13","v":0},null,null,null,null,{"$f":"H13","v":0}]
[null,"A",{"$f":"VLOOKUP(B158,$B$19:$H$137,2,FALSE)","v":"MERCADO LAS FUENTES"},null,null,null,null,{"$f":"VLOOKUP(B158,B19:H149,7,)","v":0}]
[null,"A.1",{"$f":"VLOOKUP(B159,$B$20:$H$149,2,FALSE)","v":"PRELIMINARES"},null,null,null,null,{"$f":"VLOOKUP(B159,B20:H149,7,FALSE)","v":0}]
[null,"A.2","PISOS Y BAÑOS",null,null,null,null,{"$f":"VLOOKUP(B160,B21:H149,7,FALSE)","v":0}]
[null,"A.3","CIMENTACIONES ANCLAJES ESTRUCTURAL",null,null,null,null,{"$f":"VLOOKUP(B161,B38:H149,7,FALSE)","v":0}]
[null,"A.4","ALBANILERIAS Y PINTURA",null,null,null,null,{"$f":"VLOOKUP(B162,B38:H153,7,FALSE)","v":0}]
[null,"A.5","ESTRUCTURA Y CUBIERTAS",null,null,null,null,{"$f":"VLOOKUP(B163,B38:H154,7,FALSE)","v":0}]
[null,"A.6","ELECTRICIDAD",null,null,null,null,{"$f":"VLOOKUP(B164,B39:H155,7,FALSE)","v":0}]
[null,"A.7","FONTANERIA Y BAJANTES",null,null,null,null,{"$f":"VLOOKUP(B165,B48:H156,7,FALSE)","v":0}]
[null,"A.8","SEÑALETICA",null,null,null,null,{"$f":"VLOOKUP(B166,B49:H156,7,FALSE)","v":0}]
[null,"A.9","FACHADAS",null,null,null,null,{"$f":"VLOOKUP(B167,B51:H156,7,FALSE)","v":0}]
[]
[]
[]
[]
[]
[]
[null,"IMPORTE TOTAL CON LETRA",null,null,null,"SUBTOTAL M. N.",null,{"$f":"H158","v":0}]
[null,{"$f":"Enletras(H176)","v":" Pesos   0 0/100 M.N"},null,null,null,"IVA M. N.",null,{"$f":"H174*0.16","v":0}]
[null,null,null,null,null,"TOTAL M. N.",null,{"$f":"H174+H175","v":0}]